bitfinex/quotes_BTCUSD_20240821
["timestamp","ask_amount","ask_price","bid_price","bid_amount"]
[1724200593128,0.0638,59253.0,59246.0,0.002]
[1724200593129,0.0638,59253.0,59251.0,0.001]
[1724200593335,0.0638,59253.0,59251.0,0.003]
[1724200593765,0.1421,59262.0,59255.0,0.002]
[1724200593961,0.1421,59262.0,59248.0,0.001]
[1724200593962,0.1421,59262.0,59256.0,0.0057452]
[1724200594189,0.1421,59262.0,59256.0,0.0037452]
[1724200594526,0.1421,59262.0,59256.0,0.0057452]
[1724200594730,0.1421,59262.0,59256.0,0.0047452]
[1724200595464,0.1451,59262.0,59257.0,0.001]
[1724200595662,0.1451,59262.0,59258.0,0.00274544]
[1724200596153,0.1451,59262.0,59259.0,0.00849454]
[1724200596298,0.1451,59262.0,59260.0,0.00274544]
[1724200596706,0.1421,59262.0,59260.0,0.00274544]
[1724200597084,0.1441,59262.0,59260.0,0.00274544]
[1724200597510,0.1461,59262.0,59260.0,0.00274544]
[1724200597730,0.000821,59253.0,59251.0,0.001]
[1724200597958,0.144221,59253.0,59251.0,0.002]
[1724200599202,0.0631,59252.0,59243.0,0.002]
[1724200599401,0.0631,59252.0,59244.0,0.001]
[1724200599630,0.0631,59252.0,59241.0,0.20084012]
[1724200600059,0.1434,59252.0,59251.0,0.022]
[1724200600594,0.0631,59251.0,59241.0,0.12414012]
[1724200600743,0.0803,59250.0,59244.0,0.01]
[1724200600925,0.0631,59249.0,59244.0,0.01]
[1724200601124,0.0803,59248.0,59241.0,0.12799]
[1724200601332,0.0803,59248.0,59241.0,0.20589]
[1724200601695,0.0803,59248.0,59241.0,0.22656931]
[1724200602296,0.0803,59248.0,59241.0,0.21256931]
[1724200602528,0.0803,59248.0,59241.0,0.11399]
[1724200602735,0.0647,59247.0,59241.0,0.11399]
[1724200602941,0.0788,59246.0,59241.0,0.11399]
[1724200603148,0.0647,59245.0,59244.0,0.013]
[1724200603350,0.0647,59245.0,59241.0,0.11399]
[1724200603556,0.07609417,59245.0,59241.0,0.12799]
[1724200603762,0.0647,59245.0,59241.0,0.14199]
[1724200603966,0.0647,59245.0,59241.0,0.12799]
[1724200604376,0.0657,59245.0,59244.0,0.014]
[1724200604555,0.0657,59245.0,59241.0,0.11399]
[1724200604728,0.07709417,59245.0,59241.0,0.11399]
[1724200605959,0.07909417,59245.0,59244.0,0.014]
[1724200606516,0.07909417,59245.0,59241.0,0.20593789]
[1724200606517,0.07809417,59245.0,59241.0,0.20593789]
[1724200606717,0.07909417,59245.0,59241.0,0.24062199]
[1724200607128,0.07709417,59245.0,59241.0,0.22662199]
[1724200607325,0.07609417,59245.0,59241.0,0.19193789]
[1724200607547,0.07809417,59245.0,59244.0,0.028]
[1724200607890,0.07809417,59245.0,59244.0,0.014]
[1724200609113,0.01339417,59245.0,59244.0,0.00274781]
[1724200609347,0.01339417,59245.0,59244.0,0.00274728]
[1724200609553,0.002,59245.0,59244.0,0.00274728]
[1724200609739,0.001,59245.0,59244.0,0.05092051]
[1724200610169,0.002,59245.0,59244.0,0.11527794]
[1724200610370,0.002821,59245.0,59244.0,0.11527794]
[1724200610581,0.002821,59245.0,59244.0,0.06492051]
[1724200611042,0.002821,59245.0,59244.0,0.03074728]
[1724200611249,0.002821,59245.0,59244.0,0.08112057]
[1724200611660,0.002821,59245.0,59244.0,0.3243]
[1724200612304,0.002821,59245.0,59244.0,0.37468522]
[1724200612713,0.002821,59245.0,59244.0,0.3243]
[1724200612974,0.002821,59245.0,59244.0,0.4447646]
[1724200613218,0.002821,59245.0,59244.0,0.39436647]
[1724200613644,0.002821,59245.0,59244.0,0.4447646]
[1724200613848,0.002821,59245.0,59244.0,0.028]
[1724200614078,0.066521,59245.0,59244.0,0.028]
[1724200614520,0.07789546,59245.0,59244.0,0.028]
[1724200620632,0.07789546,59245.0,59244.0,0.07847256]
[1724200620887,0.066521,59245.0,59244.0,0.028]
[1724200621135,0.066521,59245.0,59244.0,0.07847256]
[1724200621398,0.002821,59245.0,59244.0,0.13774908]
[1724200621656,0.002821,59245.0,59244.0,0.48612538]
[1724200621909,0.002821,59245.0,59244.0,0.7461968]
[1724200622191,0.002821,59245.0,59244.0,0.65723185]
[1724200622487,0.000821,59253.0,59244.0,0.57653185]
[1724200622709,0.000821,59253.0,59252.0,0.33019]
[1724200622973,0.000821,59253.0,59252.0,0.81858663]
[1724200623216,0.000821,59253.0,59252.0,0.81758663]
[1724200623679,0.000821,59253.0,59252.0,0.94374215]
[1724200623893,0.002821,59253.0,59252.0,0.95770643]
[1724200624101,0.002821,59253.0,59252.0,0.83151772]
[1724200624517,0.064221,59253.0,59252.0,0.75081772]
[1724200624964,0.002821,59253.0,59252.0,0.75081772]
[1724200625357,0.001821,59253.0,59252.0,0.75081772]
[1724200625564,0.001821,59253.0,59252.0,0.76481772]
[1724200626620,0.001821,59253.0,59252.0,0.85800752]
[1724200627683,0.001821,59253.0,59252.0,0.77480752]
[1724200628524,0.001821,59253.0,59252.0,0.77479085]
[1724200631936,1e-08,59253.0,59252.0,1.00556526]
[1724200632566,1e-08,59253.0,59252.0,0.85409085]
[1724200633401,1e-08,59253.0,59252.0,0.85406739]
[1724200633979,1e-08,59253.0,59252.0,1.00545241]
[1724200634838,1e-08,59253.0,59252.0,0.85406739]
[1724200635527,0.00082001,59253.0,59252.0,0.85406739]
[1724200637114,0.00082001,59253.0,59252.0,0.77476739]
[1724200637525,0.00082001,59253.0,59252.0,0.95286739]
[1724200637713,0.00082001,59253.0,59252.0,0.77476739]
[1724200637907,1e-08,59253.0,59252.0,0.77476739]
[1724200639369,0.13840001,59253.0,59252.0,0.028]
[1724200639786,0.14984176,59253.0,59252.0,0.028]
[1724200639989,0.14984176,59253.0,59252.0,0.023]
[1724200640220,0.14984176,59253.0,59252.0,0.014]
[1724200640426,0.14984176,59253.0,59252.0,0.025]
[1724200640872,0.14984176,59253.0,59252.0,0.014]
[1724200641737,0.1384,59252.0,59244.0,0.000902]
[1724200641936,0.01144176,59253.0,59244.0,0.000902]
[1724200642137,1e-08,59253.0,59244.0,0.000902]
[1724200642293,0.1441,59251.0,59245.0,0.06094717]
[1724200642499,0.0809,59247.0,59245.0,0.06094717]
[1724200642699,0.0632,59246.0,59245.0,0.06094717]
[1724200642957,0.0632,59246.0,59244.0,0.000902]
[1724200643259,0.01142475,59245.0,59244.0,0.003902]
[1724200643702,0.01142475,59245.0,59244.0,0.000902]
[1724200643703,0.07562475,59245.0,59244.0,0.000902]
[1724200645116,0.0642,59245.0,59244.0,0.000902]
[1724200645336,0.0642,59245.0,59244.0,0.07592927]
[1724200645519,0.0642,59245.0,59244.0,0.03471482]
[1724200645723,0.0642,59245.0,59244.0,0.03671482]
[1724200645924,0.0642,59245.0,59244.0,0.08718406]
[1724200646153,0.0642,59245.0,59244.0,0.04971482]
[1724200646267,0.0642,59245.0,59244.0,0.03571482]
[1724200646469,0.0642,59245.0,59244.0,0.07318119]
[1724200646677,0.0642,59245.0,59244.0,0.03671482]
[1724200647498,0.0642,59245.0,59244.0,0.08718377]
[1724200648145,0.0642,59245.0,59244.0,0.03671482]
[1724200648347,0.0642,59245.0,59244.0,0.10118456]
[1724200650036,0.0642,59245.0,59244.0,0.05071482]
[1724200650238,0.0642,59245.0,59244.0,0.028902]
[1724200650467,0.0642,59245.0,59244.0,0.10460458]
[1724200650680,0.0642,59245.0,59244.0,0.028902]
[1724200650888,0.0642,59245.0,59244.0,0.47928444]
[1724200651303,0.0642,59245.0,59244.0,0.10460458]
[1724200651718,0.0642,59245.0,59244.0,0.0793815]
[1724200652135,0.0642,59245.0,59244.0,0.028902]
[1724200652338,0.0642,59245.0,59244.0,0.10460458]
[1724200652562,0.0642,59245.0,59244.0,0.15843497]
[1724200653375,0.0642,59245.0,59244.0,0.028902]
[1724200653797,0.0642,59245.0,59244.0,0.07938587]
[1724200654009,0.1444,59245.0,59244.0,0.07938587]
[1724200654248,0.14419688,59245.0,59244.0,0.07938664]
[1724200655712,0.14419688,59245.0,59244.0,0.11327664]
[1724200656596,0.14419688,59245.0,59244.0,0.062792]
[1724200656597,0.14519688,59245.0,59244.0,0.062792]
[1724200657023,0.15653758,59245.0,59244.0,0.062792]
[1724200657435,0.15653758,59245.0,59244.0,0.906757]
[1724200657639,0.14519688,59245.0,59244.0,0.892757]
[1724200658079,0.14519688,59245.0,59244.0,0.905757]
[1724200658486,0.14519688,59245.0,59244.0,0.878757]
[1724200658691,0.14519688,59245.0,59244.0,0.887757]
[1724200658899,0.14519688,59245.0,59244.0,0.900757]
[1724200659607,0.14519688,59245.0,59244.0,0.866867]
[1724200661099,0.14419688,59245.0,59244.0,0.98740271]
[1724200661859,0.14529688,59245.0,59244.0,0.98740271]
[1724200663104,0.0653,59249.0,59244.0,1.06940271]
[1724200663335,0.0653,59249.0,59245.0,0.14583775]
[1724200664982,0.06422,59252.0,59247.0,0.05048464]
[1724200665247,0.06422,59252.0,59249.0,0.05048464]
[1724200665446,0.06422,59252.0,59249.0,0.08805549]
[1724200665883,0.06422,59252.0,59249.0,0.03757085]
[1724200666301,0.0634,59250.0,59249.0,0.03757085]
[1724200666503,0.0634,59250.0,59249.0,0.06157085]
[1724200666725,0.07472083,59250.0,59249.0,0.024]
[1724200667782,0.01132083,59250.0,59247.0,0.05320838]
[1724200667992,0.01132083,59250.0,59247.0,0.34950838]
[1724200668212,0.00082,59252.0,59249.0,0.014]
[1724200668415,0.00082,59252.0,59249.0,0.01674651]
[1724200668622,0.00082,59252.0,59249.0,0.02874651]
[1724200668825,0.00082,59252.0,59249.0,0.00274651]
[1724200669053,0.00082,59252.0,59249.0,0.06941059]
[1724200670963,0.00082,59252.0,59249.0,0.07941059]
[1724200671130,0.00082,59252.0,59251.0,0.03389]
[1724200671361,0.00082,59252.0,59251.0,0.58422276]
[1724200671581,0.00082,59252.0,59251.0,0.5085217]
[1724200671792,0.00082,59252.0,59251.0,0.62449349]
[1724200672025,1e-08,59252.0,59251.0,0.750614]
[1724200672227,1e-08,59252.0,59251.0,0.764614]
[1724200672433,1e-08,59252.0,59251.0,0.63849349]
[1724200672636,1e-08,59252.0,59251.0,0.75338851]
[1724200672841,1e-08,59252.0,59251.0,0.62449349]
[1724200673045,1e-08,59252.0,59251.0,0.72538934]
[1724200673499,1e-08,59252.0,59251.0,0.63457593]
[1724200673705,1e-08,59252.0,59251.0,0.71347593]
[1724200674154,1e-08,59252.0,59251.0,0.72747593]
[1724200674352,1e-08,59252.0,59251.0,0.74147593]
[1724200675169,1e-08,59253.0,59252.0,0.11339]
[1724200675373,1e-08,59253.0,59252.0,0.63056587]
[1724200675550,1e-08,59253.0,59252.0,0.62782116]
[1724200676453,1e-08,59253.0,59252.0,0.62777371]
[1724200677945,1e-08,59253.0,59252.0,0.89308045]
[1724200678358,1e-08,59253.0,59252.0,0.74177371]
[1724200678561,1e-08,59253.0,59252.0,0.75577371]
[1724200679183,1e-08,59253.0,59252.0,0.77947371]
[1724200680683,1e-08,59253.0,59252.0,0.75577371]
[1724200683222,1e-08,59253.0,59252.0,0.67627371]
[1724200684415,0.06090001,59253.0,59252.0,0.53647425]
[1724200684622,1e-08,59253.0,59252.0,0.73899276]
[1724200684835,1e-08,59253.0,59252.0,0.61287425]
[1724200685037,0.14760001,59253.0,59252.0,0.50847425]
[1724200685237,0.14760001,59253.0,59252.0,0.67245303]
[1724200685442,0.14760001,59253.0,59252.0,0.70045303]
[1724200685648,0.14760001,59253.0,59252.0,0.68645303]
[1724200686027,0.14760001,59253.0,59252.0,0.67245303]
[1724200686261,0.06520001,59253.0,59252.0,0.67245303]
[1724200686462,0.06520001,59253.0,59252.0,0.68645303]
[1724200686673,0.06520001,59253.0,59252.0,0.70045303]
[1724200687061,0.00822,59268.0,59254.0,0.03389]
[1724200687281,0.00822,59268.0,59258.0,0.03389]
[1724200687482,0.00822,59268.0,59259.0,0.00274427]
[1724200689046,0.00822,59268.0,59260.0,0.03389]
[1724200690071,0.1439,59262.0,59261.0,0.0027443]
[1724200690275,0.15531462,59262.0,59260.0,0.03389]
[1724200690496,0.15531462,59262.0,59260.0,0.05512356]
[1724200691124,0.0831,59261.0,59259.0,0.03389]
[1724200691330,0.1439,59260.0,59259.0,0.03389]
[1724200691547,0.1439,59260.0,59251.0,0.16065736]
[1724200691548,0.0608,59258.0,59251.0,0.16065736]
[1724200691962,0.0608,59258.0,59251.0,0.15044564]
[1724200692166,0.0608,59258.0,59252.0,0.03389]
[1724200693407,0.063,59256.0,59252.0,0.03389]
[1724200694047,0.01139674,59255.0,59252.0,0.03389]
[1724200695070,0.01139674,59255.0,59252.0,0.07875248]
[1724200695482,0.01139674,59255.0,59252.0,0.09275248]
[1724200695686,0.01139674,59255.0,59252.0,0.07875248]
[1724200695896,0.01139674,59255.0,59252.0,0.06475248]
[1724200696095,0.01139674,59255.0,59252.0,0.07875248]
[1724200696300,0.063,59256.0,59254.0,0.03389]
[1724200696502,0.06121101,59256.0,59254.0,0.03389]
[1724200696920,0.01137857,59255.0,59254.0,0.03389]
[1724200697535,0.06121101,59256.0,59254.0,0.03389]
[1724200697712,0.06121101,59256.0,59254.0,0.04789]
[1724200697914,0.0784,59255.0,59254.0,0.04789]
[1724200698559,0.0784,59255.0,59254.0,0.03389]
[1724200698757,0.0784,59255.0,59254.0,0.04789]
[1724200698961,0.0784,59255.0,59254.0,0.06189]
[1724200699369,0.0784,59255.0,59254.0,0.08683699]
[1724200699572,0.141,59255.0,59254.0,0.04789]
[1724200699787,0.0626,59255.0,59254.0,0.04789]
[1724200699993,0.07397916,59255.0,59254.0,0.04789]
[1724200700409,0.07397916,59255.0,59254.0,0.0983842]
[1724200700821,0.07397916,59255.0,59254.0,0.1123842]
[1724200701037,0.07397916,59255.0,59254.0,0.16061818]
[1724200705159,0.07397916,59255.0,59254.0,0.11012398]
[1724200706188,0.15657916,59255.0,59254.0,0.5122669]
[1724200706719,0.1452,59255.0,59254.0,0.5122669]
[1724200707131,0.1452,59255.0,59254.0,0.537514]
[1724200708942,0.1452,59255.0,59254.0,0.53763669]
[1724200709142,0.1452,59255.0,59254.0,0.43652602]
[1724200709793,0.1452,59255.0,59254.0,0.53765623]
[1724200710035,0.1452,59255.0,59254.0,0.53765611]
[1724200710239,0.1452,59255.0,59254.0,0.43652602]
[1724200712151,0.1452,59255.0,59254.0,0.56291436]
[1724200712371,0.1452,59255.0,59254.0,0.52902436]
[1724200712618,0.1482,59255.0,59254.0,0.028]
[1724200712857,0.1502,59255.0,59254.0,0.028]
[1724200713065,0.16157916,59255.0,59254.0,0.028]
[1724200713294,0.16157916,59255.0,59254.0,0.014]
[1724200714323,0.004,59253.0,59252.0,0.000902]
[1724200714526,0.1519,59253.0,59252.0,0.000902]
[1724200714729,0.16326606,59253.0,59252.0,0.000902]
[1724200715593,0.16326606,59253.0,59252.0,0.012902]
[1724200715594,0.16026606,59253.0,59252.0,0.012902]
[1724200716486,0.16026606,59253.0,59252.0,0.020902]
[1724200716900,0.15926606,59253.0,59252.0,0.020902]
[1724200717112,0.07636606,59253.0,59252.0,0.020902]
[1724200717320,0.07636606,59253.0,59252.0,0.0305622]
[1724200718191,0.07636606,59253.0,59252.0,0.0644522]
[1724200718192,0.01136606,59253.0,59252.0,0.0644522]
[1724200718373,0.01136606,59253.0,59252.0,0.11778995]
[1724200718602,0.000821,59256.0,59252.0,0.0644522]
[1724200718825,0.000821,59256.0,59254.0,0.03389]
[1724200719259,0.000821,59256.0,59254.0,0.03289]
[1724200719714,0.000821,59256.0,59254.0,0.03189]
[1724200720531,0.1464,59255.0,59254.0,0.03189]
[1724200720735,0.0819,59255.0,59253.0,0.02989]
[1724200720953,0.0645,59254.0,59253.0,0.02989]
[1724200721594,0.07584393,59254.0,59253.0,0.02989]
[1724200722410,0.07584393,59254.0,59253.0,0.04389]
[1724200722823,0.07584393,59254.0,59253.0,0.05789]
[1724200727969,0.15484393,59254.0,59253.0,0.05789]
[1724200728382,0.15784393,59254.0,59253.0,0.028]
[1724200728594,0.15984393,59254.0,59253.0,0.028]
[1724200730893,0.15584393,59254.0,59253.0,0.028]
[1724200735200,0.15584393,59254.0,59253.0,0.0289031]
[1724200735652,0.15666493,59254.0,59253.0,0.0289031]
[1724200737021,0.15646182,59254.0,59253.0,0.0289031]
[1724200740299,0.15846182,59254.0,59253.0,0.0289031]
[1724200740712,0.16046182,59254.0,59253.0,0.0289031]
[1724200741481,0.20490356,59254.0,59253.0,0.0149031]
[1724200741673,0.43112315,59254.0,59253.0,0.0129031]
[1724200741890,0.43112315,59254.0,59253.0,0.0189031]
[1724200742103,0.43212315,59254.0,59253.0,0.0129031]
[1724200742537,0.43212315,59254.0,59253.0,0.0139031]
[1724200742773,0.43112315,59254.0,59253.0,0.0129031]
[1724200742980,0.42912315,59254.0,59253.0,0.0129031]
[1724200743187,0.42912315,59254.0,59253.0,0.0019031]
[1724200743405,0.52912315,59254.0,59253.0,0.0019031]
[1724200743616,0.52912315,59254.0,59253.0,0.0079031]
[1724200744033,0.52912315,59254.0,59253.0,0.0019031]
[1724200744458,0.53512315,59254.0,59253.0,0.0019031]
[1724200745434,0.53512315,59254.0,59253.0,0.0009031]
[1724200745637,0.53612315,59254.0,59253.0,0.0019031]
[1724200746280,0.1759,59253.0,59252.0,0.000902]
[1724200746502,0.68234641,59253.0,59252.0,0.000902]
[1724200746720,0.69367835,59253.0,59252.0,0.000902]
[1724200747395,0.005,59246.0,59245.0,0.0009031]
[1724200747640,0.605452,59246.0,59245.0,0.0009031]
[1724200747933,0.625952,59246.0,59245.0,0.0009031]
[1724200748148,0.63728394,59246.0,59245.0,0.0009031]
[1724200748760,0.61678394,59246.0,59245.0,0.0009031]
[1724200749628,0.58855248,59246.0,59245.0,0.0009031]
[1724200749838,0.58855248,59246.0,59245.0,0.0069031]
[1724200750478,0.58855248,59246.0,59245.0,0.0009031]
[1724200750900,0.58855248,59246.0,59245.0,0.0039031]
[1724200751107,0.58955248,59246.0,59245.0,0.0039031]
[1724200757303,0.29325248,59246.0,59245.0,0.0039031]
[1724200758735,0.01733194,59246.0,59245.0,0.0039031]
[1724200758946,0.01333194,59246.0,59245.0,0.0039031]
[1724200759536,0.01533194,59246.0,59245.0,0.0039031]
[1724200759743,0.01533194,59246.0,59245.0,0.0009031]
[1724200760140,0.01533194,59246.0,59245.0,0.0099031]
[1724200760490,0.01733194,59246.0,59245.0,0.0009031]
[1724200760900,0.01633194,59246.0,59245.0,0.0009031]
[1724200761130,0.01433194,59246.0,59245.0,0.0009031]
[1724200761332,0.01433194,59246.0,59245.0,0.0059031]
[1724200762343,0.01633194,59246.0,59245.0,0.0059031]
[1724200762770,0.01633194,59246.0,59245.0,0.0159031]
[1724200767445,0.01233194,59246.0,59245.0,0.0159031]
[1724200769170,0.01633194,59246.0,59245.0,0.0159031]
[1724200770608,0.17141699,59246.0,59245.0,0.0159031]
[1724200770790,0.31421548,59246.0,59245.0,0.0159031]
[1724200771638,0.31421548,59246.0,59245.0,0.0109031]
[1724200772041,0.31421548,59246.0,59245.0,0.0119031]
[1724200772042,0.31521548,59246.0,59245.0,0.0119031]
[1724200772258,0.31521548,59246.0,59245.0,0.0019031]
[1724200772459,0.31621548,59246.0,59245.0,0.0019031]
[1724200772689,0.36783703,59246.0,59245.0,0.0019031]
[1724200775422,0.31621548,59246.0,59245.0,0.0019031]
[1724200777694,0.31621637,59246.0,59245.0,0.0019031]
[1724200778704,0.61251637,59246.0,59245.0,0.0019031]
[1724200783594,0.31199561,59246.0,59245.0,0.0019031]
[1724200783771,0.20889561,59246.0,59245.0,0.0019031]
[1724200784005,0.04659561,59246.0,59245.0,0.0019031]
[1724200784608,0.01833194,59246.0,59245.0,0.0019031]
[1724200784806,0.01633194,59246.0,59245.0,0.0009031]
[1724200785042,0.01633194,59246.0,59245.0,0.0029031]
[1724200785246,0.01733194,59246.0,59245.0,0.0029031]
[1724200785658,0.01633194,59246.0,59245.0,0.0009031]
[1724200785872,0.01733194,59246.0,59245.0,0.0049031]
[1724200787728,0.09283194,59246.0,59245.0,0.0049031]
[1724200788123,0.15533194,59246.0,59245.0,0.0049031]
[1724200788328,0.18780485,59246.0,59245.0,0.0049031]
[1724200790598,0.21658534,59246.0,59245.0,0.0049031]
[1724200791848,0.11230485,59246.0,59245.0,0.0049031]
[1724200792067,0.04980485,59246.0,59245.0,0.0049031]
[1724200792265,0.04558461,59246.0,59245.0,0.0049031]
[1724200794410,0.04980489,59246.0,59245.0,0.0049031]
[1724200794825,0.19250489,59246.0,59245.0,0.0049031]
[1724200796249,0.22175538,59246.0,59245.0,0.0049031]
[1724200800556,0.69435551,59246.0,59245.0,0.0049031]
[1724200800781,0.69435551,59246.0,59244.0,0.000902]
[1724200800782,0.1453,59245.0,59244.0,0.000902]
[1724200801005,0.46406294,59245.0,59244.0,0.000902]
[1724200801218,0.40882234,59245.0,59244.0,0.000902]
[1724200802375,0.52842234,59245.0,59244.0,0.001902]
[1724200802588,0.70612234,59245.0,59244.0,0.001902]
[1724200802797,0.70912234,59245.0,59244.0,0.002902]
[1724200803689,0.70612234,59245.0,59244.0,0.001902]
[1724200803903,0.70512234,59245.0,59244.0,0.000902]
[1724200804309,0.71512234,59245.0,59244.0,0.001902]
[1724200804725,0.6031097,59245.0,59244.0,0.000902]
[1724200804928,0.72967004,59245.0,59244.0,0.000902]
[1724200805115,0.6131097,59245.0,59244.0,0.001902]
[1724200805551,0.71036571,59245.0,59244.0,0.001902]
[1724200805751,0.71036571,59245.0,59244.0,0.000902]
[1724200805752,0.70136571,59245.0,59244.0,0.000902]
[1724200805956,0.3068097,59245.0,59244.0,0.000902]
[1724200806155,0.3068097,59245.0,59244.0,0.001902]
[1724200806156,0.32003065,59245.0,59244.0,0.001902]
[1724200806988,0.32703065,59245.0,59244.0,0.002902]
[1724200807417,0.40437177,59245.0,59244.0,0.001902]
[1724200807736,0.32107177,59245.0,59244.0,0.000902]
[1724200807871,0.32107177,59245.0,59244.0,0.001902]
[1724200807872,0.0535097,59245.0,59244.0,0.001902]
[1724200808880,0.0445097,59245.0,59244.0,0.000902]
[1724200809108,0.0535097,59245.0,59244.0,0.001902]
[1724200809314,0.0405097,59245.0,59244.0,0.082902]
[1724200809527,0.01225703,59245.0,59244.0,0.146902]
[1724200809735,0.01325703,59245.0,59244.0,0.146902]
[1724200809933,0.002,59245.0,59244.0,0.146902]
[1724200810065,0.001,59245.0,59244.0,0.146902]
[1724200810276,0.003,59245.0,59244.0,0.148902]
[1724200810479,0.007,59245.0,59244.0,0.148902]
[1724200810709,0.005,59245.0,59244.0,0.148902]
[1724200810907,0.005,59245.0,59244.0,0.149902]
[1724200811101,0.005,59245.0,59244.0,0.157902]
[1724200811464,0.001,59245.0,59244.0,0.157902]
[1724200811871,0.005,59245.0,59244.0,0.157902]
[1724200812237,0.001,59245.0,59244.0,0.157902]
[1724200815240,0.001,59245.0,59244.0,0.093902]
[1724200815241,0.005,59245.0,59244.0,0.093902]
[1724200818316,0.005,59245.0,59244.0,0.011902]
[1724200818712,0.02047491,59245.0,59244.0,0.011902]
[1724200819284,0.0385324,59245.0,59244.0,0.011902]
[1724200819465,0.02047491,59245.0,59244.0,0.011902]
[1724200819667,0.02129591,59245.0,59244.0,0.011902]
[1724200820638,0.02109276,59245.0,59244.0,0.011902]
[1724200821179,0.04934571,59245.0,59244.0,0.011902]
[1724200821382,0.02109276,59245.0,59244.0,0.011902]
[1724200821582,0.04935359,59245.0,59244.0,0.011902]
[1724200822644,0.13075359,59245.0,59244.0,0.011902]
[1724200822847,0.33075359,59245.0,59244.0,0.011902]
[1724200822989,0.54845359,59245.0,59244.0,0.011902]
[1724200823826,0.70031066,59245.0,59244.0,0.011902]
[1724200824036,0.54845359,59245.0,59244.0,0.003902]
[1724200824236,0.65882171,59245.0,59244.0,0.000902]
[1724200824433,0.65882171,59245.0,59244.0,0.001902]
[1724200824434,0.66382171,59245.0,59244.0,0.001902]
[1724200824638,0.67282171,59245.0,59244.0,0.002902]
[1724200824857,0.66782171,59245.0,59244.0,0.001902]
[1724200825379,0.67282171,59245.0,59244.0,0.002902]
[1724200825542,0.67482171,59245.0,59244.0,0.002902]
[1724200825738,0.67682171,59245.0,59244.0,0.002902]
[1724200825962,0.66782171,59245.0,59244.0,0.001902]
[1724200826164,0.67282171,59245.0,59244.0,0.002902]
[1724200826598,0.65882171,59245.0,59244.0,0.000902]
[1724200827037,0.67482171,59245.0,59244.0,0.002902]
[1724200827218,0.66351466,59245.0,59244.0,0.002902]
[1724200827604,0.78997785,59245.0,59244.0,0.002902]
[1724200827807,0.78097785,59245.0,59244.0,0.001902]
[1724200828124,0.77397785,59245.0,59244.0,0.000902]
[1724200828325,0.67391678,59245.0,59244.0,0.000902]
[1724200828503,0.67391678,59245.0,59244.0,0.001902]
[1724200828504,0.55445359,59245.0,59244.0,0.001902]
[1724200829329,0.56345359,59245.0,59244.0,0.002902]
[1724200830549,0.63353242,59245.0,59244.0,0.002902]
[1724200836434,0.56345359,59245.0,59244.0,0.002902]
[1724200838126,0.47783353,59245.0,59244.0,0.002902]
[1724200845558,0.41413353,59245.0,59244.0,0.002902]
[1724200850615,0.49283353,59245.0,59244.0,0.002902]
[1724200852038,0.41413353,59245.0,59244.0,0.002902]
[1724200852870,0.48329896,59245.0,59244.0,0.002902]
[1724200854636,0.60179896,59245.0,59244.0,0.002902]
[1724200859416,0.74249896,59245.0,59244.0,0.002902]
[1724200859623,0.74349896,59245.0,59244.0,0.002902]
[1724200859831,0.74549896,59245.0,59244.0,0.002902]
[1724200860878,0.62399896,59245.0,59244.0,0.002902]
[1724200861102,0.67333353,59245.0,59244.0,0.002902]
[1724200862993,0.67833353,59245.0,59244.0,0.002902]
[1724200863204,0.23779685,59238.0,59237.0,0.0009031]
[1724200863411,0.57792906,59238.0,59237.0,0.0009031]
[1724200863671,0.57792906,59238.0,59218.0,0.1]
[1724200863672,0.00479685,59219.0,59218.0,0.1]
[1724200863909,0.12329685,59219.0,59218.0,0.1]
[1724200864132,0.29214618,59219.0,59218.0,0.1]
[1724200864340,0.3413608,59219.0,59218.0,0.1]
[1724200864572,0.35294618,59219.0,59218.0,0.1]
[1724200865432,0.48752574,59219.0,59218.0,0.101]
[1724200865848,0.49952574,59219.0,59218.0,0.102]
[1724200866284,0.44585875,59219.0,59218.0,0.101]
[1724200866500,0.62395875,59219.0,59218.0,0.101]
[1724200866706,0.7606256,59219.0,59218.0,0.101]
[1724200866915,0.63407113,59219.0,59218.0,0.101]
[1724200867986,0.63407113,59219.0,59218.0,0.1019031]
[1724200868411,0.64507113,59219.0,59218.0,0.0019031]
[1724200871584,0.23479685,59208.0,59199.0,0.0778]
[1724200871793,0.70918128,59208.0,59199.0,0.0778]
[1724200872012,0.74245449,59208.0,59199.0,0.0778]
[1724200872245,0.76545449,59208.0,59199.0,0.0778]
[1724200872432,0.76123089,59208.0,59199.0,0.0778]
[1724200872687,0.76123089,59208.0,59207.0,0.0788402]
[1724200872688,0.66593089,59208.0,59207.0,0.0788402]
[1724200872894,0.69393089,59208.0,59207.0,0.0788402]
[1724200873308,0.76985398,59208.0,59207.0,0.0788402]
[1724200873728,0.74159315,59208.0,59207.0,0.0788402]
[1724200874151,0.72759315,59208.0,59207.0,0.0788402]
[1724200874363,0.74159315,59208.0,59207.0,0.0788402]
[1724200875424,0.66567006,59208.0,59207.0,0.0788402]
[1724200876920,0.66567006,59208.0,59207.0,0.0010402]
[1724200878614,0.56567006,59208.0,59207.0,0.0010402]
[1724200878823,0.36507006,59208.0,59207.0,0.0010402]
[1724200887675,0.14207006,59208.0,59207.0,0.0010402]
[1724200887913,0.04207006,59208.0,59207.0,0.1439402]
[1724200888854,0.01407006,59208.0,59207.0,0.1439402]
[1724200889261,0.00079685,59208.0,59207.0,0.1439402]
[1724200890085,0.01502274,59208.0,59207.0,0.1439402]
[1724200890287,0.00079685,59208.0,59207.0,0.1439402]
[1724200890490,0.01402274,59208.0,59207.0,0.1439402]
[1724200890696,0.00179685,59208.0,59207.0,0.1439402]
[1724200890868,0.01502274,59208.0,59207.0,0.1439402]
[1724200891096,0.00179685,59208.0,59207.0,0.1439402]
[1724200891651,0.002,59208.0,59207.0,0.1439402]
[1724200891876,0.002,59208.0,59207.0,0.15833422]
[1724200892276,0.002,59208.0,59207.0,0.1439402]
[1724200893144,0.001,59208.0,59207.0,0.1439402]
[1724200893497,0.00079685,59210.0,59208.0,0.1382]
[1724200894061,0.00079685,59210.0,59209.0,0.1372]
[1724200894263,0.00079685,59210.0,59209.0,0.15102402]
[1724200894464,0.00079685,59210.0,59209.0,0.1372]
[1724200895273,0.00179685,59210.0,59209.0,0.1372]
[1724200895905,0.00279685,59210.0,59209.0,0.1372]
[1724200896131,0.00179685,59210.0,59209.0,0.1372]